[Event "Titled Tuesday Blitz February 15 Late 2022"]
[White "Josse, Mark"]
[Black "Papayan, Oleg"]
[WhiteFideId "414476"]
[BlackFideId "4193911"]
[WhiteElo "2278"]
[BlackElo "2038"]
[Result "0-1"]
[Round "08"]
[TimeControl "180+1"]
[Date "2022.02.16"]
[WhiteClock "0:00:15"]
[BlackClock "0:00:14"]

1. e4 {[%clk 0:03:00]}  e5 {[%clk 0:02:53]} 2. Nf3 {[%clk 0:03:00]}  Nc6 {[%clk 0:02:52]} 3. d4 {[%clk 0:02:59]}  exd4 {[%clk 0:02:53]} 4. Nxd4 {[%clk 0:02:59]}  Qh4 {[%clk 0:02:53]} 5. Nc3 {[%clk 0:02:57]}  Bb4 {[%clk 0:02:53]} 6. Be2 {[%clk 0:02:56]}  Qxe4 {[%clk 0:02:50]} 7. Nb5 {[%clk 0:02:55]}  Bxc3+ {[%clk 0:02:50]} 8. bxc3 {[%clk 0:02:54]}  Kd8 {[%clk 0:02:49]} 9. O-O {[%clk 0:02:52]}  Nf6 {[%clk 0:02:49]} 10. Re1 {[%clk 0:02:51]}  Qd5 {[%clk 0:02:47]} 11. Bd3 {[%clk 0:02:45]}  a6 {[%clk 0:02:45]} 12. c4 {[%clk 0:02:38]}  Qh5 {[%clk 0:02:34]} 13. Be2 {[%clk 0:02:37]}  Qe5 {[%clk 0:02:24]} 14. Rb1 {[%clk 0:02:04]}  axb5 {[%clk 0:02:22]} 15. Bb2 {[%clk 0:02:01]}  Qd6 {[%clk 0:01:51]} 16. Qxd6 {[%clk 0:01:59]}  cxd6 {[%clk 0:01:51]} 17. cxb5 {[%clk 0:02:00]}  Ne5 {[%clk 0:01:41]} 18. a3 {[%clk 0:01:52]}  Re8 {[%clk 0:01:25]} 19. c4 {[%clk 0:01:45]}  b6 {[%clk 0:01:20]} 20. f4 {[%clk 0:01:43]}  Ng6 {[%clk 0:01:13]} 21. Bf3 {[%clk 0:01:40]}  Rxe1+ {[%clk 0:01:03]} 22. Rxe1 {[%clk 0:01:39]}  Ra4 {[%clk 0:01:04]} 23. Bd4 {[%clk 0:01:32]}  Kc7 {[%clk 0:00:54]} 24. Bxf6 {[%clk 0:01:04]}  gxf6 {[%clk 0:00:55]} 25. Bd5 {[%clk 0:01:03]}  Nxf4 {[%clk 0:00:50]} 26. Bxf7 {[%clk 0:01:02]}  Ne6 {[%clk 0:00:42]} 27. Re4 {[%clk 0:00:57]}  d5 {[%clk 0:00:37]} 28. Rh4 {[%clk 0:00:53]}  dxc4 {[%clk 0:00:32]} 29. Rxh7 {[%clk 0:00:52]}  Kd6 {[%clk 0:00:33]} 30. Rh4 {[%clk 0:00:47]}  Bb7 {[%clk 0:00:26]} 31. Bxe6 {[%clk 0:00:41]}  dxe6 {[%clk 0:00:24]} 32. Rg4 {[%clk 0:00:42]}  f5 {[%clk 0:00:22]} 33. Rg3 {[%clk 0:00:40]}  Be4 {[%clk 0:00:19]} 34. h4 {[%clk 0:00:39]}  f4 {[%clk 0:00:19]} 35. Rg4 {[%clk 0:00:34]}  e5 {[%clk 0:00:14]} 36. h5 {[%clk 0:00:34]}  c3 {[%clk 0:00:14]} 37. h6 {[%clk 0:00:28]}  c2 {[%clk 0:00:14]} 38. Kh2 {[%clk 0:00:25]}  c1=Q {[%clk 0:00:14]} 39. Rg7 {[%clk 0:00:22]}  Ra8 {[%clk 0:00:11]} 40. h7 {[%clk 0:00:20]}  Rh8 {[%clk 0:00:12]} 41. a4 {[%clk 0:00:17]}  Rxh7+ {[%clk 0:00:12]} 42. Rxh7 {[%clk 0:00:18]}  Bxh7 {[%clk 0:00:13]} 43. a5 {[%clk 0:00:17]}  bxa5 {[%clk 0:00:13]} 44. b6 {[%clk 0:00:17]}  Kc6 {[%clk 0:00:13]} 45. b7 {[%clk 0:00:18]}  Kxb7 {[%clk 0:00:14]} 46. Kh3 {[%clk 0:00:17]}  Qe3+ {[%clk 0:00:13]} 47. Kh4 {[%clk 0:00:16]}  Qg3+ {[%clk 0:00:14]} 48. Kh5 {[%clk 0:00:17]}  Bg6+ {[%clk 0:00:14]} 49. Kh6 {[%clk 0:00:17]}  Qxg2 {[%clk 0:00:13]} 50. Kg7 {[%clk 0:00:17]}  f3 {[%clk 0:00:14]} 51. Kf6 {[%clk 0:00:17]}  f2 {[%clk 0:00:15]} 52. Kxe5 {[%clk 0:00:17]}  f1=Q {[%clk 0:00:13]} 53. Kd4 {[%clk 0:00:17]}  Qd2+ {[%clk 0:00:13]} 54. Ke5 {[%clk 0:00:16]}  Qff4+ {[%clk 0:00:13]} 55. Ke6 {[%clk 0:00:15]}  Qdd6# {[%clk 0:00:14]} 0-1


[Site "https://www.chess.com"]

[Event "Titled Tuesday Blitz February 15 Late 2022"]
[White "Kalajzic, Ivan"]
[Black "Fiorito, Fabian"]
[WhiteFideId "14506378"]
[BlackFideId "100200"]
[WhiteElo "2163"]
[BlackElo "2395"]
[Result "0-1"]
[Round "08"]
[TimeControl "180+1"]
[Date "2022.02.16"]
[WhiteClock "0:00:11"]
[BlackClock "0:00:20"]

1. d4 {[%clk 0:03:00]}  d5 {[%clk 0:02:57]} 2. Nc3 {[%clk 0:03:00]}  Nf6 {[%clk 0:02:57]} 3. Bg5 {[%clk 0:02:59]}  e6 {[%clk 0:02:55]} 4. e4 {[%clk 0:02:59]}  Be7 {[%clk 0:02:54]} 5. e5 {[%clk 0:02:58]}  Nfd7 {[%clk 0:02:54]} 6. h4 {[%clk 0:02:58]}  h6 {[%clk 0:02:53]} 7. Bxe7 {[%clk 0:02:58]}  Qxe7 {[%clk 0:02:54]} 8. Qg4 {[%clk 0:02:57]}  Kf8 {[%clk 0:02:54]} 9. a3 {[%clk 0:02:57]}  c5 {[%clk 0:02:55]} 10. dxc5 {[%clk 0:02:49]}  Nxe5 {[%clk 0:02:50]} 11. Qg3 {[%clk 0:02:49]}  Ned7 {[%clk 0:02:49]} 12. b4 {[%clk 0:02:39]}  a5 {[%clk 0:02:46]} 13. Rb1 {[%clk 0:02:38]}  b6 {[%clk 0:02:35]} 14. cxb6 {[%clk 0:02:29]}  axb4 {[%clk 0:02:28]} 15. axb4 {[%clk 0:02:29]}  Nxb6 {[%clk 0:02:26]} 16. Nf3 {[%clk 0:02:28]}  Nc6 {[%clk 0:02:22]} 17. b5 {[%clk 0:02:13]}  Nb4 {[%clk 0:02:20]} 18. Bd3 {[%clk 0:02:10]}  Qc5 {[%clk 0:02:15]} 19. Ne2 {[%clk 0:01:53]}  Bd7 {[%clk 0:01:51]} 20. O-O {[%clk 0:01:51]}  Rc8 {[%clk 0:01:42]} 21. Ne5 {[%clk 0:01:48]}  Be8 {[%clk 0:01:38]} 22. Nf4 {[%clk 0:01:34]}  Qc7 {[%clk 0:01:17]} 23. Neg6+ {[%clk 0:01:29]}  Kg8 {[%clk 0:01:15]} 24. Nxh8 {[%clk 0:01:26]}  Nxd3 {[%clk 0:01:14]} 25. Nxd3 {[%clk 0:01:04]}  Kxh8 {[%clk 0:01:12]} 26. Qxc7 {[%clk 0:01:03]}  Rxc7 {[%clk 0:01:13]} 27. Rfc1 {[%clk 0:00:58]}  f6 {[%clk 0:01:13]} 28. Nb4 {[%clk 0:00:58]}  Bxb5 {[%clk 0:01:10]} 29. Nxd5 {[%clk 0:00:56]}  Nxd5 {[%clk 0:01:11]} 30. Rxb5 {[%clk 0:00:55]}  Kh7 {[%clk 0:01:11]} 31. c4 {[%clk 0:00:55]}  Nf4 {[%clk 0:01:11]} 32. Rb2 {[%clk 0:00:53]}  Nd3 {[%clk 0:01:11]} 33. Rbc2 {[%clk 0:00:50]}  Nxc1 {[%clk 0:01:12]} 34. Rxc1 {[%clk 0:00:51]}  Rc5 {[%clk 0:01:12]} 35. g3 {[%clk 0:00:47]}  Kg6 {[%clk 0:01:12]} 36. Kf1 {[%clk 0:00:47]}  Kf5 {[%clk 0:01:13]} 37. Ke2 {[%clk 0:00:48]}  Ke4 {[%clk 0:01:14]} 38. f3+ {[%clk 0:00:43]}  Kd4 {[%clk 0:01:06]} 39. Rd1+ {[%clk 0:00:43]}  Kxc4 {[%clk 0:01:06]} 40. Rd7 {[%clk 0:00:44]}  Re5+ {[%clk 0:01:05]} 41. Kf2 {[%clk 0:00:43]}  g5 {[%clk 0:01:06]} 42. hxg5 {[%clk 0:00:39]}  hxg5 {[%clk 0:01:06]} 43. f4 {[%clk 0:00:37]}  Rf5 {[%clk 0:01:03]} 44. Ke3 {[%clk 0:00:36]}  Kc5 {[%clk 0:00:50]} 45. Rd1 {[%clk 0:00:29]}  Rd5 {[%clk 0:00:49]} 46. Ra1 {[%clk 0:00:22]}  Kd6 {[%clk 0:00:48]} 47. Ra7 {[%clk 0:00:21]}  Rc5 {[%clk 0:00:45]} 48. Rf7 {[%clk 0:00:20]}  gxf4+ {[%clk 0:00:44]} 49. gxf4 {[%clk 0:00:20]}  f5 {[%clk 0:00:42]} 50. Ra7 {[%clk 0:00:17]}  Rc3+ {[%clk 0:00:42]} 51. Ke2 {[%clk 0:00:17]}  Rh3 {[%clk 0:00:37]} 52. Ra5 {[%clk 0:00:16]}  Rc3 {[%clk 0:00:33]} 53. Kf2 {[%clk 0:00:16]}  Rc5 {[%clk 0:00:34]} 54. Ra7 {[%clk 0:00:15]}  Kd5 {[%clk 0:00:34]} 55. Re7 {[%clk 0:00:14]}  Rc4 {[%clk 0:00:31]} 56. Kg3 {[%clk 0:00:14]}  Re4 {[%clk 0:00:32]} 57. Rd7+ {[%clk 0:00:13]}  Kc5 {[%clk 0:00:31]} 58. Rd2 {[%clk 0:00:14]}  Rd4 {[%clk 0:00:31]} 59. Rf2 {[%clk 0:00:14]}  Kd5 {[%clk 0:00:31]} 60. Kh4 {[%clk 0:00:15]}  Ke4 {[%clk 0:00:31]} 61. Kg5 {[%clk 0:00:15]}  Rd3 {[%clk 0:00:27]} 62. Re2+ {[%clk 0:00:15]}  Re3 {[%clk 0:00:27]} 63. Rb2 {[%clk 0:00:14]}  Rg3+ {[%clk 0:00:26]} 64. Kf6 {[%clk 0:00:14]}  Kxf4 {[%clk 0:00:26]} 65. Kxe6 {[%clk 0:00:15]}  Kg4 {[%clk 0:00:21]} 66. Rf2 {[%clk 0:00:14]}  Re3+ {[%clk 0:00:19]} 67. Kf6 {[%clk 0:00:14]}  f4 {[%clk 0:00:20]} 68. Rg2+ {[%clk 0:00:13]}  Kf3 {[%clk 0:00:20]} 69. Rg8 {[%clk 0:00:13]}  Ra3 {[%clk 0:00:20]} 70. Kf5 {[%clk 0:00:13]}  Ra5+ {[%clk 0:00:20]} 71. Ke6 {[%clk 0:00:12]}  Kf2 {[%clk 0:00:20]} 72. Rb8 {[%clk 0:00:11]}  f3 {[%clk 0:00:20]} 73. Rb2+ {[%clk 0:00:12]}  Kg3 {[%clk 0:00:20]} 74. Rb5 {[%clk 0:00:11]}  Rxb5 {[%clk 0:00:20]} 0-1


[Site "https://www.chess.com"]

[Event "Titled Tuesday Blitz February 15 Late 2022"]
[White "Karttunen, Mika"]
[Black "Senthil Maran K"]
[WhiteFideId "502081"]
[BlackFideId "25035681"]
[WhiteElo "2343"]
[BlackElo "2194"]
[Result "1/2-1/2"]
[Round "08"]
[TimeControl "180+1"]
[Date "2022.02.16"]
[WhiteClock "0:00:20"]
[BlackClock "0:00:33"]

1. d4 {[%clk 0:03:00]}  d5 {[%clk 0:02:55]} 2. c4 {[%clk 0:03:00]}  e6 {[%clk 0:02:55]} 3. Nc3 {[%clk 0:02:59]}  c6 {[%clk 0:02:56]} 4. e4 {[%clk 0:02:56]}  dxe4 {[%clk 0:02:55]} 5. Nxe4 {[%clk 0:02:56]}  Bb4+ {[%clk 0:02:56]} 6. Bd2 {[%clk 0:02:47]}  Qxd4 {[%clk 0:02:56]} 7. Bxb4 {[%clk 0:02:47]}  Qxe4+ {[%clk 0:02:56]} 8. Be2 {[%clk 0:02:45]}  Na6 {[%clk 0:02:55]} 9. Bc3 {[%clk 0:02:31]}  f6 {[%clk 0:02:49]} 10. Nf3 {[%clk 0:02:27]}  Ne7 {[%clk 0:02:49]} 11. O-O {[%clk 0:02:16]}  O-O {[%clk 0:02:48]} 12. Bd3 {[%clk 0:02:16]}  Qg4 {[%clk 0:02:43]} 13. h3 {[%clk 0:02:13]}  Qh5 {[%clk 0:02:42]} 14. b4 {[%clk 0:01:41]}  e5 {[%clk 0:02:39]} 15. Be2 {[%clk 0:01:41]}  Qf7 {[%clk 0:02:33]} 16. Re1 {[%clk 0:01:28]}  Be6 {[%clk 0:02:33]} 17. Nd2 {[%clk 0:01:25]}  Rfd8 {[%clk 0:02:28]} 18. Qc2 {[%clk 0:01:24]}  Nf5 {[%clk 0:02:16]} 19. c5 {[%clk 0:01:11]}  Nd4 {[%clk 0:02:14]} 20. Bxd4 {[%clk 0:01:08]}  Rxd4 {[%clk 0:02:15]} 21. Bxa6 {[%clk 0:01:06]}  bxa6 {[%clk 0:02:13]} 22. a3 {[%clk 0:01:05]}  Rad8 {[%clk 0:02:09]} 23. Ne4 {[%clk 0:00:46]}  Bf5 {[%clk 0:02:06]} 24. f3 {[%clk 0:00:47]}  Qg6 {[%clk 0:01:44]} 25. Qb3+ {[%clk 0:00:42]}  Qf7 {[%clk 0:01:44]} 26. Qxf7+ {[%clk 0:00:40]}  Kxf7 {[%clk 0:01:45]} 27. Nd6+ {[%clk 0:00:41]}  Ke6 {[%clk 0:01:45]} 28. Re2 {[%clk 0:00:41]}  h5 {[%clk 0:01:41]} 29. Kf2 {[%clk 0:00:41]}  h4 {[%clk 0:01:41]} 30. Rb2 {[%clk 0:00:40]}  Bd3 {[%clk 0:01:40]} 31. Rd1 {[%clk 0:00:40]}  Bb5 {[%clk 0:01:31]} 32. Rxd4 {[%clk 0:00:38]}  exd4 {[%clk 0:01:31]} 33. Rb1 {[%clk 0:00:35]}  Kd5 {[%clk 0:01:31]} 34. Ke1 {[%clk 0:00:32]}  a5 {[%clk 0:01:30]} 35. Kd2 {[%clk 0:00:32]}  axb4 {[%clk 0:01:31]} 36. Rxb4 {[%clk 0:00:32]}  Kxc5 {[%clk 0:01:29]} 37. Ne4+ {[%clk 0:00:32]}  Kb6 {[%clk 0:01:25]} 38. a4 {[%clk 0:00:32]}  Ka5 {[%clk 0:01:23]} 39. Rb1 {[%clk 0:00:32]}  Kxa4 {[%clk 0:01:22]} 40. Nc5+ {[%clk 0:00:32]}  Ka3 {[%clk 0:01:20]} 41. Rb3+ {[%clk 0:00:32]}  Ka2 {[%clk 0:01:20]} 42. Kc1 {[%clk 0:00:32]}  Bc4 {[%clk 0:01:11]} 43. Rb4 {[%clk 0:00:33]}  Bb5 {[%clk 0:00:32]} 44. Rb2+ {[%clk 0:00:27]}  Ka3 {[%clk 0:00:32]} 45. Rb3+ {[%clk 0:00:27]}  Ka2 {[%clk 0:00:33]} 46. Rb2+ {[%clk 0:00:23]}  Ka3 {[%clk 0:00:33]} 47. Rb3+ {[%clk 0:00:19]}  Ka2 {[%clk 0:00:33]} 48. Rb2+ {[%clk 0:00:20]} 1/2-1/2


[Site "https://www.chess.com"]

[Event "Titled Tuesday Blitz February 15 Late 2022"]
[White "Khater, Sherif"]
[Black "Aradhya, Garg"]
[WhiteFideId "2034280"]
[BlackFideId "25006746"]
[WhiteElo "2558"]
[BlackElo "2169"]
[Result "0-1"]
[Round "08"]
[TimeControl "180+1"]
[Date "2022.02.16"]
[WhiteClock "0:00:15"]
[BlackClock "0:00:50"]

1. b3 {[%clk 0:03:00]}  e5 {[%clk 0:02:55]} 2. Bb2 {[%clk 0:03:01]}  Nc6 {[%clk 0:02:54]} 3. e3 {[%clk 0:03:01]}  d5 {[%clk 0:02:51]} 4. Bb5 {[%clk 0:03:01]}  Ne7 {[%clk 0:02:51]} 5. Bxe5 {[%clk 0:03:00]}  a6 {[%clk 0:02:51]} 6. Bxc6+ {[%clk 0:02:59]}  Nxc6 {[%clk 0:02:52]} 7. Bb2 {[%clk 0:02:59]}  Qg5 {[%clk 0:02:52]} 8. Nf3 {[%clk 0:02:47]}  Qxg2 {[%clk 0:02:50]} 9. Rg1 {[%clk 0:02:48]}  Qh3 {[%clk 0:02:50]} 10. Rg3 {[%clk 0:02:33]}  Qh5 {[%clk 0:02:49]} 11. Nc3 {[%clk 0:02:28]}  f6 {[%clk 0:02:31]} 12. Qe2 {[%clk 0:02:25]}  Be6 {[%clk 0:02:30]} 13. O-O-O {[%clk 0:02:24]}  O-O-O {[%clk 0:02:30]} 14. Nd4 {[%clk 0:02:20]}  Qxe2 {[%clk 0:02:29]} 15. Ncxe2 {[%clk 0:02:19]}  Nxd4 {[%clk 0:02:30]} 16. Nxd4 {[%clk 0:02:20]}  Bd7 {[%clk 0:02:29]} 17. f4 {[%clk 0:02:16]}  g6 {[%clk 0:02:22]} 18. f5 {[%clk 0:02:04]}  Bd6 {[%clk 0:02:19]} 19. Rf3 {[%clk 0:01:58]}  Be5 {[%clk 0:02:19]} 20. Ne6 {[%clk 0:01:46]}  Bxb2+ {[%clk 0:02:17]} 21. Kxb2 {[%clk 0:01:47]}  Bxe6 {[%clk 0:02:17]} 22. fxe6 {[%clk 0:01:48]}  f5 {[%clk 0:02:17]} 23. h4 {[%clk 0:01:39]}  Rd6 {[%clk 0:02:16]} 24. h5 {[%clk 0:01:39]}  Rxe6 {[%clk 0:02:16]} 25. Rh1 {[%clk 0:01:37]}  Rhe8 {[%clk 0:02:15]} 26. hxg6 {[%clk 0:01:37]}  hxg6 {[%clk 0:02:16]} 27. Rh7 {[%clk 0:01:36]}  R6e7 {[%clk 0:02:16]} 28. Rh6 {[%clk 0:01:36]}  Re6 {[%clk 0:02:14]} 29. Rg3 {[%clk 0:01:33]}  Rg8 {[%clk 0:02:13]} 30. Rg5 {[%clk 0:01:34]}  Kd7 {[%clk 0:02:12]} 31. Rh7+ {[%clk 0:01:34]}  Re7 {[%clk 0:02:11]} 32. Rh6 {[%clk 0:01:33]}  Reg7 {[%clk 0:02:11]} 33. Kc3 {[%clk 0:01:33]}  Ke6 {[%clk 0:02:10]} 34. Kd4 {[%clk 0:01:32]}  b6 {[%clk 0:02:10]} 35. b4 {[%clk 0:01:30]}  Kf6 {[%clk 0:02:09]} 36. Rg2 {[%clk 0:01:28]}  c6 {[%clk 0:02:08]} 37. a4 {[%clk 0:01:27]}  Re7 {[%clk 0:01:58]} 38. d3 {[%clk 0:01:26]}  a5 {[%clk 0:01:26]} 39. bxa5 {[%clk 0:01:22]}  bxa5 {[%clk 0:01:27]} 40. Rg3 {[%clk 0:01:23]}  Re6 {[%clk 0:01:24]} 41. Kc5 {[%clk 0:01:21]}  Kg7 {[%clk 0:01:24]} 42. Rgh3 {[%clk 0:01:19]}  Rge8 {[%clk 0:01:23]} 43. Rh7+ {[%clk 0:01:18]}  Kf6 {[%clk 0:01:24]} 44. Rc7 {[%clk 0:01:15]}  Rxe3 {[%clk 0:01:24]} 45. Rxc6+ {[%clk 0:01:11]}  Kg5 {[%clk 0:01:23]} 46. Rh1 {[%clk 0:01:06]}  Rg3 {[%clk 0:01:19]} 47. Kxd5 {[%clk 0:01:05]}  f4 {[%clk 0:01:19]} 48. Rf1 {[%clk 0:01:02]}  f3 {[%clk 0:01:18]} 49. Rc5 {[%clk 0:01:01]}  Re2 {[%clk 0:01:12]} 50. c4 {[%clk 0:00:46]}  f2 {[%clk 0:01:10]} 51. Rxa5 {[%clk 0:00:45]}  Rg1 {[%clk 0:01:09]} 52. Kd4+ {[%clk 0:00:41]}  Kg4 {[%clk 0:01:08]} 53. Rxf2 {[%clk 0:00:42]}  Rxf2 {[%clk 0:01:08]} 54. Ra6 {[%clk 0:00:36]}  g5 {[%clk 0:01:03]} 55. a5 {[%clk 0:00:36]}  Ra1 {[%clk 0:01:00]} 56. Kc5 {[%clk 0:00:32]}  Rf5+ {[%clk 0:00:54]} 57. Kb4 {[%clk 0:00:31]}  Kf4 {[%clk 0:00:52]} 58. d4 {[%clk 0:00:29]}  g4 {[%clk 0:00:50]} 59. d5 {[%clk 0:00:30]}  g3 {[%clk 0:00:50]} 60. Rg6 {[%clk 0:00:18]}  Rg5 {[%clk 0:00:50]} 61. Rxg5 {[%clk 0:00:14]}  Kxg5 {[%clk 0:00:50]} 62. d6 {[%clk 0:00:14]}  g2 {[%clk 0:00:50]} 63. d7 {[%clk 0:00:14]}  Rd1 {[%clk 0:00:50]} 64. a6 {[%clk 0:00:14]}  Rxd7 {[%clk 0:00:50]} 65. a7 {[%clk 0:00:15]}  Rxa7 {[%clk 0:00:50]} 0-1


[Site "https://www.chess.com"]

[Event "Titled Tuesday Blitz February 15 Late 2022"]
[White "Kobo, Ori"]
[Black "Al Mukhaini, Shima"]
[WhiteFideId "2812320"]
[BlackFideId "22005854"]
[WhiteElo "2420"]
[BlackElo "2402"]
[Result "1-0"]
[Round "08"]
[TimeControl "180+1"]
[Date "2022.02.16"]
[WhiteClock "0:00:08"]
[BlackClock "0:00:06"]

1. d4 {[%clk 0:03:00]}  Nf6 {[%clk 0:02:58]} 2. c4 {[%clk 0:03:01]}  Nc6 {[%clk 0:02:57]} 3. Nc3 {[%clk 0:02:54]}  e5 {[%clk 0:02:55]} 4. d5 {[%clk 0:02:48]}  Nb8 {[%clk 0:02:55]} 5. e4 {[%clk 0:02:49]}  Bb4 {[%clk 0:02:54]} 6. Bd3 {[%clk 0:02:48]}  Bxc3+ {[%clk 0:02:53]} 7. bxc3 {[%clk 0:02:48]}  d6 {[%clk 0:02:52]} 8. Ne2 {[%clk 0:02:43]}  h6 {[%clk 0:02:52]} 9. f3 {[%clk 0:02:43]}  a5 {[%clk 0:02:49]} 10. g4 {[%clk 0:02:30]}  Na6 {[%clk 0:02:40]} 11. h4 {[%clk 0:02:30]}  Nc5 {[%clk 0:02:39]} 12. Ng3 {[%clk 0:02:22]}  g6 {[%clk 0:02:33]} 13. g5 {[%clk 0:02:17]}  Ng8 {[%clk 0:02:31]} 14. gxh6 {[%clk 0:01:54]}  Nxh6 {[%clk 0:02:30]} 15. Bg5 {[%clk 0:01:52]}  f6 {[%clk 0:02:29]} 16. Be3 {[%clk 0:01:50]}  Qe7 {[%clk 0:02:10]} 17. Bc2 {[%clk 0:01:37]}  Bd7 {[%clk 0:02:08]} 18. Bxc5 {[%clk 0:01:33]}  dxc5 {[%clk 0:02:08]} 19. Rb1 {[%clk 0:01:32]}  b6 {[%clk 0:02:08]} 20. h5 {[%clk 0:01:28]}  g5 {[%clk 0:02:05]} 21. Ba4 {[%clk 0:01:27]}  Qd6 {[%clk 0:01:58]} 22. Nf1 {[%clk 0:01:24]}  Bxa4 {[%clk 0:01:51]} 23. Qxa4+ {[%clk 0:01:23]}  Qd7 {[%clk 0:01:52]} 24. Qxd7+ {[%clk 0:01:18]}  Kxd7 {[%clk 0:01:52]} 25. Ne3 {[%clk 0:01:19]}  Rh7 {[%clk 0:01:44]} 26. Kf2 {[%clk 0:01:14]}  Nf7 {[%clk 0:01:42]} 27. Rh3 {[%clk 0:00:57]}  Rah8 {[%clk 0:01:40]} 28. Rbh1 {[%clk 0:00:57]}  Nh6 {[%clk 0:01:35]} 29. Ke2 {[%clk 0:00:52]}  Kd6 {[%clk 0:01:35]} 30. Kd3 {[%clk 0:00:52]}  Rg8 {[%clk 0:01:33]} 31. Ng4 {[%clk 0:00:50]}  Rf8 {[%clk 0:01:31]} 32. Rg1 {[%clk 0:00:46]}  Ke7 {[%clk 0:01:08]} 33. Ne3 {[%clk 0:00:45]}  Kd6 {[%clk 0:01:07]} 34. Nc2 {[%clk 0:00:44]}  Kd7 {[%clk 0:01:02]} 35. a4 {[%clk 0:00:43]}  Nf7 {[%clk 0:01:00]} 36. Ne3 {[%clk 0:00:43]}  Nh6 {[%clk 0:00:59]} 37. Ng4 {[%clk 0:00:42]}  Ke7 {[%clk 0:00:58]} 38. Rb1 {[%clk 0:00:40]}  Kd6 {[%clk 0:00:56]} 39. Rg1 {[%clk 0:00:37]}  Ke7 {[%clk 0:00:56]} 40. Ne3 {[%clk 0:00:36]}  Kd7 {[%clk 0:00:55]} 41. Rh2 {[%clk 0:00:35]}  Ke7 {[%clk 0:00:55]} 42. Ke2 {[%clk 0:00:34]}  Kd7 {[%clk 0:00:54]} 43. Ke1 {[%clk 0:00:31]}  Ke7 {[%clk 0:00:54]} 44. Rgh1 {[%clk 0:00:30]}  Kd7 {[%clk 0:00:54]} 45. Rd2 {[%clk 0:00:29]}  Kd6 {[%clk 0:00:53]} 46. Rg2 {[%clk 0:00:26]}  Kd7 {[%clk 0:00:51]} 47. Ke2 {[%clk 0:00:25]}  Kd6 {[%clk 0:00:51]} 48. Ng4 {[%clk 0:00:24]}  Ke7 {[%clk 0:00:49]} 49. Rgh2 {[%clk 0:00:19]}  Kd6 {[%clk 0:00:48]} 50. Rg1 {[%clk 0:00:16]}  Rff7 {[%clk 0:00:47]} 51. Kd3 {[%clk 0:00:15]}  Rf8 {[%clk 0:00:46]} 52. Ne3 {[%clk 0:00:15]}  Rff7 {[%clk 0:00:46]} 53. Nc2 {[%clk 0:00:15]}  Rf8 {[%clk 0:00:45]} 54. Na3 {[%clk 0:00:16]}  Kd7 {[%clk 0:00:44]} 55. Nb5 {[%clk 0:00:15]}  Nf7 {[%clk 0:00:43]} 56. Ke3 {[%clk 0:00:11]}  Rfh8 {[%clk 0:00:40]} 57. Rgh1 {[%clk 0:00:10]}  Nd6 {[%clk 0:00:40]} 58. Na3 {[%clk 0:00:10]}  Rh6 {[%clk 0:00:38]} 59. Kd3 {[%clk 0:00:10]}  Ke7 {[%clk 0:00:38]} 60. Nc2 {[%clk 0:00:10]}  Nf7 {[%clk 0:00:36]} 61. Ne3 {[%clk 0:00:10]}  Nd6 {[%clk 0:00:32]} 62. Ng4 {[%clk 0:00:10]}  Kf7 {[%clk 0:00:27]} 63. Nxh6+ {[%clk 0:00:10]}  Rxh6 {[%clk 0:00:28]} 64. Rh3 {[%clk 0:00:11]}  Ke7 {[%clk 0:00:28]} 65. Rg1 {[%clk 0:00:11]}  Nf7 {[%clk 0:00:26]} 66. Rg4 {[%clk 0:00:11]}  Kd6 {[%clk 0:00:26]} 67. Rg2 {[%clk 0:00:11]}  Ke7 {[%clk 0:00:23]} 68. Ke3 {[%clk 0:00:11]}  Nd6 {[%clk 0:00:23]} 69. Rhh2 {[%clk 0:00:12]}  Nxc4+ {[%clk 0:00:22]} 70. Kd3 {[%clk 0:00:11]}  Nd6 {[%clk 0:00:22]} 71. c4 {[%clk 0:00:10]}  Kf7 {[%clk 0:00:20]} 72. Rb2 {[%clk 0:00:10]}  Kg7 {[%clk 0:00:20]} 73. Rh1 {[%clk 0:00:10]}  Rh8 {[%clk 0:00:19]} 74. Rbh2 {[%clk 0:00:09]}  Kh6 {[%clk 0:00:19]} 75. Rg2 {[%clk 0:00:09]}  Rf8 {[%clk 0:00:19]} 76. Rf2 {[%clk 0:00:06]}  Rf7 {[%clk 0:00:18]} 77. Rg2 {[%clk 0:00:06]}  Re7 {[%clk 0:00:19]} 78. Rg4 {[%clk 0:00:06]}  Re8 {[%clk 0:00:19]} 79. Rg2 {[%clk 0:00:05]}  Rd8 {[%clk 0:00:19]} 80. Rgg1 {[%clk 0:00:05]}  Rh8 {[%clk 0:00:19]} 81. Rh2 {[%clk 0:00:05]}  Ne8 {[%clk 0:00:18]} 82. Ke3 {[%clk 0:00:04]}  Nd6 {[%clk 0:00:18]} 83. Kd3 {[%clk 0:00:05]}  Nf7 {[%clk 0:00:18]} 84. Rhh1 {[%clk 0:00:05]}  Re8 {[%clk 0:00:18]} 85. Rh2 {[%clk 0:00:05]}  Rf8 {[%clk 0:00:18]} 86. Rhh1 {[%clk 0:00:05]}  Nd6 {[%clk 0:00:19]} 87. Rh3 {[%clk 0:00:06]}  Ne8 {[%clk 0:00:19]} 88. Rhh1 {[%clk 0:00:06]}  Ng7 {[%clk 0:00:19]} 89. Rh3 {[%clk 0:00:06]}  Rh8 {[%clk 0:00:19]} 90. Rgh1 {[%clk 0:00:07]}  Rd8 {[%clk 0:00:17]} 91. Ke3 {[%clk 0:00:07]}  Ne8 {[%clk 0:00:17]} 92. Rd1 {[%clk 0:00:07]}  Nd6 {[%clk 0:00:17]} 93. Kd3 {[%clk 0:00:07]}  Rg8 {[%clk 0:00:17]} 94. Rg1 {[%clk 0:00:07]}  Rf8 {[%clk 0:00:17]} 95. Rh2 {[%clk 0:00:06]}  f5 {[%clk 0:00:15]} 96. exf5 {[%clk 0:00:07]}  Rxf5 {[%clk 0:00:14]} 97. Rh3 {[%clk 0:00:07]}  Rf4 {[%clk 0:00:14]} 98. Rg4 {[%clk 0:00:07]}  e4+ {[%clk 0:00:10]} 99. Kd2 {[%clk 0:00:03]}  Nxc4+ {[%clk 0:00:10]} 100. Ke1 {[%clk 0:00:03]}  Nd6 {[%clk 0:00:03]} 101. Rxf4 {[%clk 0:00:03]}  gxf4 {[%clk 0:00:04]} 102. fxe4 {[%clk 0:00:03]}  Nxe4 {[%clk 0:00:05]} 103. Rh4 {[%clk 0:00:03]}  Kg5 {[%clk 0:00:03]} 104. h6 {[%clk 0:00:03]}  Kxh4 {[%clk 0:00:01]} 105. h7 {[%clk 0:00:03]}  Kg3 {[%clk 0:00:02]} 106. h8=Q {[%clk 0:00:04]}  Kf3 {[%clk 0:00:02]} 107. Qe5 {[%clk 0:00:04]}  Ke3 {[%clk 0:00:03]} 108. Qxc7 {[%clk 0:00:04]}  f3 {[%clk 0:00:04]} 109. Qe7 {[%clk 0:00:03]}  f2+ {[%clk 0:00:03]} 110. Kf1 {[%clk 0:00:04]}  Kf3 {[%clk 0:00:04]} 111. Qf7+ {[%clk 0:00:04]}  Ke3 {[%clk 0:00:04]} 112. Qe6 {[%clk 0:00:04]}  Kf3 {[%clk 0:00:03]} 113. Qf5+ {[%clk 0:00:04]}  Ke3 {[%clk 0:00:03]} 114. Qe5 {[%clk 0:00:04]}  Kf3 {[%clk 0:00:04]} 115. Qf5+ {[%clk 0:00:05]}  Ke3 {[%clk 0:00:04]} 116. Qe6 {[%clk 0:00:05]}  Kf3 {[%clk 0:00:04]} 117. Qf7+ {[%clk 0:00:06]}  Ke3 {[%clk 0:00:05]} 118. Kg2 {[%clk 0:00:06]}  Ke2 {[%clk 0:00:04]} 119. Qf3+ {[%clk 0:00:06]}  Ke1 {[%clk 0:00:04]} 120. Qe3+ {[%clk 0:00:06]}  Kd1 {[%clk 0:00:04]} 121. Qxe4 {[%clk 0:00:07]}  f1=Q+ {[%clk 0:00:03]} 122. Kxf1 {[%clk 0:00:07]}  Kd2 {[%clk 0:00:03]} 123. d6 {[%clk 0:00:07]}  Kc3 {[%clk 0:00:04]} 124. d7 {[%clk 0:00:08]}  c4 {[%clk 0:00:04]} 125. d8=Q {[%clk 0:00:08]}  Kb3 {[%clk 0:00:05]} 126. Qxb6+ {[%clk 0:00:08]}  Ka3 {[%clk 0:00:06]} 127. Qc5+ {[%clk 0:00:08]}  Kxa4 {[%clk 0:00:06]} 128. Qexc4# {[%clk 0:00:08]} 1-0


[Site "https://www.chess.com"]